fUSD/lending_fUSD_20260116
["ID","MTS","AMOUNT","RATE_DAILY","PERIOD"]
[402171043,1768567754099,-21.59152891,0.00015773,2]
[402171044,1768567754120,-408.63286531,0.00015773,2]
[402171045,1768567771101,-91.36713469,0.00015773,2]
[402171046,1768567776388,-151.0,0.00016242,2]
[402171047,1768567776412,-151.0,0.0001625,2]
[402171048,1768567776439,-151.0,0.00016254,2]
[402171049,1768567776463,-158.11278045,0.00016269,2]
[402171050,1768567776489,-180.08,0.00016509,2]
[402171051,1768567776513,-4808.80721955,0.000169,2]
[402171052,1768567814588,76.66035384,0.00015773,2]
[402171053,1768567814997,-119.10822392,0.00015773,2]
[402171054,1768567815023,-151.0,0.00016281,2]
[402171055,1768567815047,-392.65,0.00016538,2]
[402171056,1768567815071,-150.0,0.00016578,2]
[402171057,1768567815097,-335.72126414,0.00016849,2]
[402171058,1768567815122,-4735.38328145,0.000169,2]
[402171059,1768567815146,-182.93,0.00016939,2]
[402171060,1768567815171,-1180.58,0.00016939,2]
[402171061,1768567815197,-300.0,0.00016948,2]
[402171062,1768567815223,-1200.0,0.00016948,2]
[402171063,1768567815252,-65752.62723049,0.00016949,2]
[402171065,1768567832230,-728.91649147,0.00016949,2]
[402171066,1768567832241,-2279.48107587,0.00016949,2]
[402171067,1768567832252,-24138.79410797,0.00016949,2]
[402171068,1768567832263,-287.98489867,0.00016949,2]
[402171069,1768567832274,-658.19883048,0.00016949,2]
[402171070,1768567832285,-300.0,0.00016949,2]
[402171071,1768567832310,-741.54979015,0.00016949,2]
[402171073,1768567832325,-3096.30824948,0.00016949,2]
[402171075,1768567832336,-1095.57428476,0.00016949,2]
[402171101,1768567838428,-1352.78563589,0.00016949,2]
[402171103,1768567838440,-19976.00080965,0.00016949,2]
[402171105,1768567838452,-726.4,0.00016949,2]
[402171154,1768567840126,-207782.96299512,0.00016949,2]
[402171155,1768567840136,-1074.8891,0.00016949,2]
[402171156,1768567840146,-5013.3332339,0.00016964,2]
[402171157,1768567840156,-335.72126409,0.00016999,2]
[402171158,1768567840166,-250.0,0.00017,2]
[402171159,1768567840176,-166.66,0.00017033,2]
[402171160,1768567840185,-500.0,0.00017039,2]
[402171161,1768567840195,-500.0,0.00017039,2]
[402171162,1768567840204,-500.0,0.00017039,2]
[402171163,1768567840215,-500.0,0.00017039,2]
[402171164,1768567840224,-500.0,0.00017039,2]
[402171165,1768567840234,-500.0,0.00017039,2]
[402171166,1768567840243,-525.56138561,0.00017039,2]
[402171167,1768567840252,-1016.798,0.00017048,2]
[402171168,1768567840262,-195.42,0.00017048,2]
[402171169,1768567840271,-500.0,0.00017048,2]
[402171170,1768567840281,-500.0,0.00017048,2]
[402171171,1768567840291,-300.73444003,0.00017065,2]
[402171172,1768567840301,-5013.33323384,0.00017068,2]
[402171173,1768567840310,-1143.26,0.00017099,2]
[402171174,1768567840319,-429.2349835,0.00017099,2]
[402171175,1768567840330,-250.0,0.00017099,2]
[402171176,1768567840339,-250.0,0.00017099,2]
[402171177,1768567840348,-250.0,0.00017099,2]
[402171178,1768567840357,-250.0,0.00017099,2]
[402171179,1768567840367,-250.0,0.00017099,2]
[402171180,1768567840377,-250.0,0.00017099,2]
[402171181,1768567840387,-250.0,0.00017099,2]
[402171182,1768567840396,-250.0,0.00017099,2]
[402171183,1768567840406,-250.0,0.00017099,2]
[402171184,1768567840415,-250.0,0.00017099,2]
[402171185,1768567840425,-250.0,0.00017099,2]
[402171186,1768567840434,-500.0,0.00017099,2]
[402171187,1768567840443,-574.12855637,0.00017099,2]
[402171188,1768567840453,-427.83577414,0.00017099,2]
[402171189,1768567840463,-689.66878,0.00017099,2]
[402171190,1768567840473,-166.66,0.00017147,2]
[402171191,1768567840483,-500.0,0.00017149,2]
[402171192,1768567840492,-502.03196329,0.00017149,2]
[402171193,1768567840502,-335.72126409,0.00017149,2]
[402171194,1768567840512,-5013.33323384,0.00017172,2]
[402171195,1768567840521,-2500.0,0.00017245,2]
[402171196,1768567840533,-195.0,0.00017245,2]
[402171197,1768567840542,-300.0,0.00017245,2]
[402171198,1768567840553,-246.180182,0.00017245,2]
[402171199,1768567840562,-5074.53355401,0.00017245,2]
[402171200,1768567840571,-5013.33323384,0.00017276,2]
[402171201,1768567840583,-335.72126409,0.00017299,2]
[402171202,1768567840593,-1143.26,0.00017373,2]
[402171203,1768567840603,-5013.33323384,0.0001738,2]
[402171204,1768567840614,-180.08,0.00017426,2]
[402171205,1768567840625,-335.72126409,0.0001745,2]
[402171206,1768567840636,-5013.33323384,0.00017484,2]
[402171207,1768567840645,-1503.0,0.000175,2]
[402171208,1768567840657,-500.0,0.00017562,2]
[402171209,1768567840667,-500.0,0.00017578,2]
[402171210,1768567840676,-5013.33323384,0.00017588,2]
[402171211,1768567840685,-335.72126409,0.000176,2]
[402171212,1768567840698,-500.0,0.00017617,2]
[402171213,1768567840708,-331.02630933,0.0001764,2]
[402171214,1768567840717,-1143.26,0.00017647,2]
[402171215,1768567840730,-595.37131296,0.00017647,2]
[402171216,1768567840740,-500.0,0.00017672,2]
[402171217,1768567840749,-5013.33323384,0.00017692,2]
[402171218,1768567840759,-1008.0,0.000177,2]
[402171219,1768567840768,-500.0,0.00017726,2]
[402171220,1768567840778,-166.66,0.00017735,2]
[402171221,1768567840787,-335.72126409,0.0001775,2]
[402171222,1768567840796,-254.1151102,0.00017781,2]
[402171223,1768567840805,-5013.33323384,0.00017796,2]
[402171224,1768567840815,-1000.0,0.000178,2]
[402171225,1768567840825,-174.41773391,0.00017878,7]
[402171226,1768567840834,-460.29115934,0.00017878,7]
[402171227,1768567840844,-812.00816513,0.00017878,7]
[402171228,1768567840854,-1214.71565201,0.00017878,7]
[402171229,1768567840863,-1643.5485,0.00017878,7]
[402171230,1768567840872,-304.09959517,0.00017899,2]
[402171231,1768567840881,-500.0,0.00017899,2]
[402171232,1768567840891,-500.0,0.00017899,2]
[402171233,1768567840901,-500.0,0.00017899,2]
[402171234,1768567840911,-361.63117117,0.00017899,2]
[402171235,1768567840920,-1000.0,0.000179,2]
[402171236,1768567840929,-1880.47876949,0.000179,2]
[402171237,1768567840939,-1880.47876949,0.000179,2]
[402171238,1768567840948,-1880.47876949,0.000179,2]
[402171239,1768567840958,-1880.47876949,0.000179,2]
[402171240,1768567840967,-1880.47876949,0.000179,2]
[402171241,1768567840977,-1880.47876949,0.000179,2]
[402171242,1768567840986,-1880.47876949,0.000179,2]
[402171243,1768567840995,-1880.47876949,0.000179,2]
[402171244,1768567841005,-1880.47876949,0.000179,2]
[402171245,1768567841014,-1880.47876949,0.000179,2]
[402171246,1768567841023,-1880.47876949,0.000179,2]
[402171247,1768567841032,-1880.47876949,0.000179,2]
[402171248,1768567841042,-5013.33323384,0.000179,2]
[402171249,1768567841051,-1880.47876949,0.000179,2]
[402171250,1768567841060,-1880.47876949,0.000179,2]
[402171251,1768567841070,-1880.47876949,0.000179,2]
[402171252,1768567841079,-1880.47876949,0.000179,2]
[402171253,1768567841090,-1880.47876949,0.000179,2]
[402171254,1768567841100,-1880.47876949,0.000179,2]
[402171255,1768567841110,-1880.47876949,0.000179,2]
[402171256,1768567841119,-1880.47876949,0.000179,2]
[402171257,1768567841129,-8011.951765,0.000179,2]
[402171258,1768567841139,-734.86315293,0.000179,2]
[402171259,1768567841149,-361.89457886,0.000179,2]
[402171260,1768567841161,-335.72126409,0.000179,2]
[402171261,1768567841171,-600.0,0.00017909,2]
[402171262,1768567841180,-1143.26,0.00017921,2]
[402171263,1768567841190,-168.0,0.00017942,2]
[402171264,1768567841200,-395.66,0.00017987,2]
[402171265,1768567841210,-1720.898429,0.00017998,2]
[402171266,1768567841219,-5118.6403474,0.00017999,2]
[402171267,1768567841229,-155.0,0.00017999,2]
[402171268,1768567841239,-6384.98501,0.00017999,2]
[402171269,1768567841248,-55840.0694417,0.00017999,2]
[402171270,1768567841259,-15578.2782886,0.00017999,2]
[402171271,1768567841268,-15239.7169922,0.00017999,2]
[402171272,1768567841277,-2963.0,0.00018,2]
[402171273,1768567841287,-150.0,0.00018,2]
[402171274,1768567841297,-1470969.38619615,0.00018,2]
[402171275,1768567841306,-500.0,0.00018,3]
[402171276,1768567841316,-235.58993014,0.00018,2]
[402171277,1768567841325,-4874411.23862427,0.00018,2]
[402171279,1768567845012,-1430.4,0.00018,2]
[402171285,1768567846412,-1318.34007905,0.00018,2]
[402171294,1768568105069,159.89,0.00028596,120]
[402171295,1768568457131,396.34,8.272e-05,2]
[402171296,1768568457908,396.34,8.707e-05,2]
[402171297,1768568457965,396.34,9.143e-05,2]
[402171298,1768568458025,396.34,9.578e-05,2]
[402171299,1768568458227,396.34,0.00010014,2]
[402171300,1768568458500,396.34,0.00010449,2]
[402171301,1768568458725,396.34,0.00010884,2]
[402171302,1768568458911,396.34,0.0001132,2]
[402171303,1768568459116,396.34,0.00011755,2]
[402171304,1768568459414,396.34,0.0001219,2]
[402171305,1768568459580,396.34,0.00012626,2]
[402171306,1768568459815,396.34,0.00013061,2]
[402171307,1768568460023,396.34,0.00013496,2]
[402171308,1768568460237,396.34,0.00013932,2]
[402171309,1768568460511,396.34,0.00014367,2]
[402171310,1768568460680,396.34,0.00014803,2]
[402171311,1768568461094,396.34,0.00015238,2]
[402171314,1768568731103,-194.03116487,0.00015673,2]
[402171315,1768568836172,-202.30883513,0.00015673,2]
[402171316,1768568836192,-500.85523386,0.00015773,2]
[402171317,1768568836213,-217.71221348,0.00015773,2]
[402171318,1768568836232,-500.0,0.00015773,2]
[402171319,1768568836252,-158.9,0.00016053,2]
[402171320,1768568836273,-396.34,0.00016109,2]
[402171321,1768568836293,-1000.0,0.00016214,2]
[402171322,1768568836312,-176.61,0.00016225,2]
[402171323,1768568836332,-1091.69074588,0.00016321,2]
[402171324,1768568836351,-251.71572117,0.00016438,2]
[402171325,1768568936769,3000.0,0.00030137,120]
[402171326,1768568973074,-162.06101932,0.00015773,2]
[402171328,1768569032204,-282.0,0.00015773,2]
[402171329,1768569032213,-571.06165973,0.00015924,2]
[402171330,1768569032225,-782.37834027,0.00015924,2]
[402171331,1768569032234,-106.84656001,0.00016095,2]
[402171332,1768569032246,-461.59343999,0.00016095,2]
[402171333,1768569032255,-1282.93848905,0.00016121,2]
[402171334,1768569032265,-549.03720078,0.00016438,2]
[402171335,1768569032274,-396.34,0.00016544,2]
[402171336,1768569032284,-300.0,0.00016648,2]
[402171337,1768569032293,-1200.0,0.00016648,2]
[402171338,1768569032303,-4168.71016938,0.00016649,2]
[402171339,1768569032314,-529.74179822,0.00016649,2]
[402171340,1768569032329,-974.05877356,0.00016649,2]
[402171341,1768569032344,-925.50355784,0.00016649,2]
[402171342,1768569032355,-1617.34995375,0.00016649,2]
[402171343,1768569032366,-488.41,0.00016649,2]
[402171344,1768569032377,-389.49271743,0.00016649,2]
[402171345,1768569038234,-691.62480857,0.00016649,2]
[402171346,1768569038246,-1362.49601342,0.00016649,2]
[402171347,1768569038287,-684754.02948722,0.00016649,2]
[402171348,1768569038298,-3300.52680941,0.00016649,2]
[402171349,1768569038343,-545.5750367,0.00016649,2]
[402171350,1768569038354,-2200.0,0.00016649,2]
[402171351,1768569038398,-2444.83323628,0.00016649,2]
[402171399,1768569040279,-188292.25043822,0.00016649,2]
[402171400,1768569040289,-1372.98,0.00016749,2]
[402171401,1768569040299,-186.688,0.00016749,2]
[402171402,1768569040308,-2500.0,0.00016749,2]
[402171403,1768569040318,-345.62228344,0.00016802,2]
[402171404,1768569040329,-200.0,0.00016825,2]
[402171405,1768569040338,-500.0,0.00016825,2]
[402171406,1768569040347,-500.0,0.00016839,2]
[402171407,1768569040356,-500.0,0.00016839,2]
[402171408,1768569040366,-500.0,0.00016839,2]
[402171409,1768569040375,-500.0,0.00016839,2]
[402171410,1768569040384,-500.0,0.00016839,2]
[402171411,1768569040393,-500.0,0.00016839,2]
[402171412,1768569040403,-525.56138561,0.00016839,2]
[402171413,1768569040412,-264.0,0.00016847,2]
[402171414,1768569040422,-500.0,0.00016848,2]
[402171415,1768569040431,-500.0,0.00016848,2]
[402171416,1768569040441,-553.98597441,0.00016848,2]
[402171417,1768569040451,-413.25749368,0.00016848,2]
[402171418,1768569040460,-185.86294316,0.00016848,2]
[402171419,1768569040469,-304.09959517,0.00016848,2]
[402171420,1768569040479,-500.0,0.00016848,2]
[402171421,1768569040488,-500.0,0.00016848,2]
[402171422,1768569040497,-361.63117117,0.00016848,2]
[402171423,1768569040507,-500.0,0.00016848,2]
[402171424,1768569040516,-500.0,0.0001688,2]
[402171425,1768569040526,-568.44,0.000169,2]
[402171426,1768569040535,-500.0,0.00016935,2]
[402171427,1768569040544,-210.14193989,0.00016948,2]
[402171428,1768569040553,-345.62228339,0.00016959,2]
[402171429,1768569040563,-500.0,0.00016989,2]
[402171430,1768569040577,-161.63,0.00017011,2]
[402171431,1768569040589,-500.0,0.00017044,2]
[402171432,1768569040604,-500.0,0.00017048,2]
[402171433,1768569040617,-500.0,0.00017048,2]
[402171434,1768569040630,-314.66486057,0.00017048,2]
[402171435,1768569040641,-500.0,0.00017048,2]
[402171436,1768569040652,-500.0,0.00017048,2]
[402171437,1768569040665,-500.0,0.00017048,2]
[402171438,1768569040678,-500.0,0.00017048,2]
[402171439,1768569040690,-511.24268744,0.00017048,2]
[402171440,1768569040701,-500.0,0.00017048,2]
[402171441,1768569040713,-1143.26,0.00017048,2]
[402171443,1768569040725,-204.77,0.00017088,2]
[402171446,1768569040737,-500.0,0.00017099,2]
[402171448,1768569040749,-429.2349835,0.00017099,2]
[402171451,1768569040762,-250.0,0.00017099,2]
[402171453,1768569040773,-250.0,0.00017099,2]
[402171455,1768569040783,-250.0,0.00017099,2]
[402171457,1768569040794,-250.0,0.00017099,2]
[402171459,1768569040804,-250.0,0.00017099,2]
[402171460,1768569040815,-574.12855637,0.00017099,2]
[402171461,1768569040827,-250.0,0.00017099,2]
[402171462,1768569040839,-250.0,0.00017099,2]
[402171463,1768569040850,-250.0,0.00017099,2]
[402171464,1768569040862,-250.0,0.00017099,2]
[402171465,1768569040873,-250.0,0.00017099,2]
[402171466,1768569040884,-250.0,0.00017099,2]
[402171467,1768569040896,-500.0,0.00017099,2]
[402171468,1768569040909,-427.83577414,0.00017099,2]
[402171469,1768569040922,-689.66878,0.00017099,2]
[402171470,1768569040934,-500.0,0.00017109,2]
[402171471,1768569040945,-345.62228339,0.00017116,2]
[402171472,1768569040958,-500.0,0.00017154,2]
[402171473,1768569040970,-500.0,0.00017209,2]
[402171474,1768569040981,-201.11018168,0.00017241,2]
[402171475,1768569040992,-300.73444003,0.00017241,2]
[402171476,1768569041005,-195.0,0.00017241,2]
[402171477,1768569041017,-600.0,0.00017241,2]
[402171478,1768569041028,-500.0,0.00017263,2]
[402171479,1768569041038,-345.62228339,0.00017273,2]
[402171480,1768569041050,-5013.33323384,0.0001729,2]
[402171481,1768569041062,-500.0,0.00017318,2]
[402171482,1768569041075,-1143.26,0.00017322,2]
[402171483,1768569041088,-300.0,0.0001735,2]
[402171484,1768569041099,-5074.53355401,0.0001735,2]
[402171485,1768569041110,-2500.0,0.0001735,2]
[402171486,1768569041121,-246.180182,0.0001735,2]
[402171487,1768569041132,-200.0,0.0001735,2]
[402171488,1768569041144,-300.0,0.0001735,2]
[402171489,1768569041153,-465.1151102,0.00017373,2]
[402171490,1768569041163,-5013.33323384,0.00017412,2]
[402171491,1768569041174,-210.14193987,0.00017424,2]
[402171492,1768569041185,-345.62228339,0.00017429,2]
[402171493,1768569041196,-1282.93848905,0.00017445,2]
[402171494,1768569041209,-1503.0,0.000175,2]
[402171495,1768569041222,-5013.33323384,0.00017534,2]
[402171496,1768569041231,-345.62228339,0.00017586,2]
[402171497,1768569041242,-1143.26,0.00017596,2]
[402171498,1768569041252,-331.02630933,0.0001764,2]
[402171499,1768569041263,-595.37131296,0.00017647,2]
[402171500,1768569041273,-5013.33323384,0.00017656,2]
[402171501,1768569041284,-568.44,0.00017704,2]
[402171502,1768569041296,-204.77,0.00017729,2]
[402171503,1768569041310,-345.62228339,0.00017743,2]
[402171504,1768569041321,-5013.33323384,0.00017778,2]
[402171505,1768569041333,-1000.0,0.000178,2]
[402171506,1768569041343,-1361.37298,0.0001783,2]
[402171507,1768569041353,-168.0,0.00017835,2]
[402171508,1768569041363,-174.41773391,0.00017868,7]
[402171509,1768569041374,-460.29115934,0.00017868,7]
[402171510,1768569041384,-812.00816513,0.00017868,7]
[402171511,1768569041395,-1214.71565201,0.00017868,7]
[402171512,1768569041405,-1643.5485,0.00017868,7]
[402171513,1768569041416,-1143.26,0.0001787,2]
[402171514,1768569041431,-1361.37298,0.0001788,2]
[402171515,1768569041442,-1098.9593,0.000179,2]
[402171516,1768569041453,-5013.33323384,0.000179,2]
[402171517,1768569041464,-1000.0,0.000179,2]
[402171518,1768569041474,-1880.47876949,0.000179,2]
[402171519,1768569041485,-1880.47876949,0.000179,2]
[402171520,1768569041496,-1880.47876949,0.000179,2]
[402171521,1768569041507,-1880.47876949,0.000179,2]
[402171522,1768569041517,-1880.47876949,0.000179,2]
[402171523,1768569041528,-1880.47876949,0.000179,2]
[402171524,1768569041538,-1880.47876949,0.000179,2]
[402171525,1768569041548,-1880.47876949,0.000179,2]
[402171526,1768569041559,-1880.47876949,0.000179,2]
[402171527,1768569041569,-1880.47876949,0.000179,2]
[402171528,1768569041579,-1880.47876949,0.000179,2]
[402171529,1768569041590,-1880.47876949,0.000179,2]
[402171530,1768569041601,-1880.47876949,0.000179,2]
[402171531,1768569041612,-1880.47876949,0.000179,2]
[402171532,1768569041623,-1880.47876949,0.000179,2]
[402171533,1768569041635,-1880.47876949,0.000179,2]
[402171534,1768569041646,-1880.47876949,0.000179,2]
[402171535,1768569041657,-1880.47876949,0.000179,2]
[402171536,1768569041669,-1880.47876949,0.000179,2]
[402171537,1768569041682,-1880.47876949,0.000179,2]
[402171538,1768569041694,-345.62228339,0.000179,2]
[402171539,1768569041706,-210.14193987,0.000179,2]
[402171540,1768569041719,-1361.37298,0.0001793,2]
[402171541,1768569041730,-1361.37298,0.0001798,2]
[402171542,1768569041740,-15312.305538,0.00017998,2]
[402171543,1768569041751,-3267.4405151,0.00017998,2]
[402171544,1768569041763,-150.0,0.00017999,2]
[402171545,1768569041774,-3706.0,0.00017999,2]
[402171546,1768569041784,-155.0,0.00017999,2]
[402171547,1768569041796,-72099.5073474,0.00017999,2]
[402171548,1768569041807,-6367.9579924,0.00017999,2]
[402171549,1768569041817,-1396.9651374,0.00017999,2]
[402171550,1768569041828,-6376591.6536934,0.00018,2]
[402171551,1768569041874,-3889.325472,0.00018,2]
[402171552,1768569041900,-530.51235744,0.00018,2]
[402171560,1768569043261,-16797.240802,0.00018,2]
[402171561,1768569043313,-2617.51112008,0.00018,2]
[402171562,1768569043432,-500.0,0.00016848,2]
[402171563,1768569043443,-258.14934782,0.00018,2]
[402171564,1768569043455,-952.78421973,0.00018,2]
[402171565,1768569043476,-57425.93151005,0.00018,2]
[402171566,1768569043488,-502.52103596,0.00018,2]
[402171567,1768569043500,-4280.37655949,0.00018,2]
[402171569,1768569046452,-151.0,0.00016257,2]
[402171570,1768569046462,-1356.25277022,0.00018,2]
[402171571,1768569046488,-2735.5842564,0.00018,2]
[402171579,1768569885758,3910.13,0.00013261,2]
[402171580,1768569909581,-2331.59295863,0.00043005,30]
[402171581,1768569909609,-1651.24254486,0.00043005,30]
[402171582,1768569909636,-1698.3062285,0.00043005,30]
[402171583,1768569909666,-1915.2050485,0.00043005,30]
[402171584,1768569909694,-1362.3171969,0.00043005,30]
[402171585,1768569909722,-2473.70097439,0.00043005,30]
[402171586,1768569909752,-1317.56987965,0.00043005,30]
[402171587,1768569909781,-1972.54455711,0.00043005,30]
[402171588,1768569909812,-1000.0,0.00043005,30]
[402171589,1768569909842,-1000.0,0.00043005,120]
[402171590,1768569909870,-1340.78855219,0.00043005,60]
[402171591,1768569909898,-2000.0,0.00043005,60]
[402171592,1768569909931,-2000.0,0.00043005,60]
[402171593,1768569909960,-2000.0,0.00043005,60]
[402171594,1768569909989,-2000.0,0.00043005,60]
[402171595,1768569910017,-2000.0,0.00043005,60]
[402171596,1768569910045,-2000.0,0.00043005,60]
[402171597,1768569910073,-2000.0,0.00043005,60]
[402171598,1768569910101,-2000.0,0.00043005,60]
[402171599,1768569910129,-2000.0,0.00043005,60]
[402171600,1768569910158,-2000.0,0.00043005,60]
[402171601,1768569910186,-2000.0,0.00043005,60]
[402171602,1768569910213,-2000.0,0.00043005,60]
[402171603,1768569910241,-2000.0,0.00043005,60]
[402171604,1768569910270,-2000.0,0.00043005,60]
[402171605,1768569910301,-2000.0,0.00043005,60]
[402171606,1768569910331,-2000.0,0.00043005,60]
[402171607,1768569910361,-2000.0,0.00043005,60]
[402171608,1768569910387,-2000.0,0.00043005,60]
[402171609,1768569910428,-2000.0,0.00043005,60]
[402171610,1768569910457,-2000.0,0.00043005,60]
[402171611,1768569910485,-2000.0,0.00043005,60]
[402171612,1768569910515,-2000.0,0.00043005,60]
[402171613,1768569910545,-2000.0,0.00043005,60]
[402171614,1768569910575,-2000.0,0.00043005,60]
[402171615,1768569910605,-2000.0,0.00043005,60]
[402171616,1768569910635,-2000.0,0.00043005,60]
[402171617,1768569910667,-2000.0,0.00043005,60]
[402171618,1768569910697,-2000.0,0.00043005,60]
[402171619,1768569910728,-2000.0,0.00043005,60]
[402171620,1768569910758,-2000.0,0.00043005,60]
[402171621,1768569910790,-364.68845038,0.00043005,60]
[402171622,1768569910821,-500.0,0.00043005,120]
[402171623,1768569910850,-500.0,0.00043005,120]
[402171624,1768569910880,-500.0,0.00043005,120]
[402171625,1768569910911,-1266.0,0.00043005,30]
[402171626,1768569910941,-1266.0,0.00043005,120]
[402171627,1768569910970,-15081.40935946,0.00043005,120]
[402171628,1768569911000,-165.37876578,0.00043005,120]
[402171629,1768569911031,-500.0,0.00043005,120]
[402171630,1768569911062,-500.0,0.00043005,120]
[402171631,1768569911092,-245.909,0.00043005,120]
[402171632,1768569911121,-46404.97871357,0.00043005,120]
[402171633,1768569911150,-500.0,0.00043005,120]
[402171634,1768569911181,-500.0,0.00043005,120]
[402171635,1768569911211,-500.0,0.00043005,120]
[402171636,1768569911240,-500.0,0.00043005,120]
[402171637,1768569911269,-601.23,0.00043005,120]
[402171638,1768569911302,-500.0,0.00043005,120]
[402171639,1768569911330,-500.0,0.00043005,120]
[402171640,1768569911359,-370.00051843,0.00043005,120]
[402171641,1768569911386,-189.62924457,0.00043005,120]
[402171642,1768569911418,-500.0,0.00043005,120]
[402171643,1768569911447,-500.0,0.00043005,120]
[402171644,1768569911477,-500.0,0.00043005,120]
[402171645,1768569911505,-500.0,0.00043005,120]
[402171646,1768569911533,-500.0,0.00043005,120]
[402171647,1768569911561,-647.48,0.00043005,120]
[402171648,1768569911588,-618.57494572,0.00043005,120]
[402171649,1768569911617,-500.0,0.00043005,120]
[402171650,1768569911646,-500.0,0.00043005,120]
[402171651,1768569911675,-500.0,0.00043005,120]
[402171652,1768569911706,-642.33260155,0.00043005,120]
[402171653,1768569911735,-500.0,0.00043005,120]
[402171654,1768569911765,-500.0,0.00043005,120]
[402171655,1768569911793,-500.0,0.00043005,120]
[402171656,1768569911823,-500.0,0.00043005,120]
[402171657,1768569911852,-594.22944026,0.00043005,120]
[402171658,1768569911883,-500.0,0.00043005,120]
[402171659,1768569911916,-500.0,0.00043005,120]
[402171660,1768569911947,-619.99,0.00043005,120]
[402171661,1768569911975,-951.79482885,0.00043005,60]
[402171662,1768569912005,-500.0,0.00043005,120]
[402171663,1768569912034,-527.49,0.00043005,120]
[402171664,1768569912063,-1598.60907337,0.00043005,120]
[402171665,1768569912091,-2322.61793911,0.00043005,120]
[402171666,1768569912119,-727.99184419,0.00043005,120]
[402171667,1768569912374,-2597.82958563,0.00043005,120]
[402171668,1768569912402,-795.24813085,0.00043005,120]
[402171669,1768569912430,-959.11960882,0.00043005,120]
[402171670,1768569912457,-628.69909428,0.00043005,120]
[402171671,1768569912485,-865.85663641,0.00043005,120]
[402171672,1768569912514,-551.31917535,0.00043005,90]
[402171673,1768569912542,-610.95808122,0.00043005,120]
[402171674,1768569912571,-2057.59530171,0.00043005,60]
[402171675,1768569912599,-392.0,0.00043005,120]
[402171676,1768569912627,-1191.79237246,0.00043005,120]
[402171677,1768569912656,-776.91854776,0.00043005,120]
[402171678,1768569912685,-2203.14090034,0.00043005,120]
[402171679,1768569912713,-2665.66516479,0.00043005,120]
[402171680,1768569912741,-1462.44343692,0.00043005,120]
[402171681,1768569912769,-1515.01185973,0.00043005,120]
[402171682,1768569912798,-1827.57745575,0.00043005,120]
[402171683,1768569912827,-2042.59764576,0.00043005,120]
[402171684,1768569912855,-994.50752449,0.00043005,120]
[402171685,1768569912884,-1476.39416773,0.00043005,120]
[402171686,1768569912913,-1611.25757284,0.00043005,120]
[402171687,1768569912943,-577.75455364,0.00043005,120]
[402171688,1768569912971,-1421.42142651,0.00043005,120]
[402171689,1768569913001,-926.30307314,0.00043005,120]
[402171690,1768569913030,-1022.61806765,0.00043005,120]
[402171691,1768569913060,-500.0,0.00043005,120]
[402171692,1768569913088,-791.12379307,0.00043005,120]
[402171693,1768569913116,-658.0,0.00043005,120]
[402171694,1768569913144,-1014.45267046,0.00043005,120]
[402171695,1768569913177,-1102.82835818,0.00043005,120]
[402171696,1768569913226,-1300.0,0.00043005,120]
[402171697,1768569913269,-669035.53562148,0.00043005,30]
[402171698,1768569913303,-1725.0529,0.00043005,120]
[402171699,1768569913340,-502.26045677,0.00043005,30]
[402171700,1768569913372,-500.0,0.00043005,120]
[402171701,1768569913404,-500.0,0.00043005,120]
[402171702,1768569913432,-547.47470779,0.00043005,120]
[402171703,1768569913460,-2202.4331772,0.00043005,120]
[402171704,1768569913490,-500.0,0.00043005,120]
[402171705,1768569913520,-500.0,0.00043005,120]
[402171706,1768569913549,-500.0,0.00043005,120]
[402171707,1768569913577,-546.25,0.00043005,120]
[402171708,1768569913605,-1232.08,0.00043005,120]
[402171709,1768569913633,-279.95587166,0.00043005,120]